[Event "Titled Tuesday Blitz October 11 Late 2022"]
[White "Kostiukov, Alexandr"]
[Black "Kovanova, Baira"]
[WhiteFideId "14108100"]
[BlackFideId "4164083"]
[WhiteElo "2202"]
[BlackElo "2217"]
[Result "1-0"]
[Round "05"]
[TimeControl "180+1"]
[Date "2022.10.12"]
[WhiteClock "0:00:21"]
[BlackClock "0:00:03"]

1. g3 {[%clk 0:02:51]}  d5 {[%clk 0:02:59]} 2. Bg2 {[%clk 0:02:52]}  e5 {[%clk 0:02:59]} 3. c4 {[%clk 0:02:51]}  c6 {[%clk 0:02:56]} 4. cxd5 {[%clk 0:02:51]}  cxd5 {[%clk 0:02:57]} 5. d4 {[%clk 0:02:51]}  e4 {[%clk 0:02:56]} 6. Nc3 {[%clk 0:02:51]}  Nf6 {[%clk 0:02:56]} 7. Bg5 {[%clk 0:02:51]}  Be7 {[%clk 0:02:38]} 8. Nh3 {[%clk 0:02:51]}  O-O {[%clk 0:02:37]} 9. Nf4 {[%clk 0:02:51]}  Nc6 {[%clk 0:02:31]} 10. e3 {[%clk 0:02:47]}  Be6 {[%clk 0:02:29]} 11. O-O {[%clk 0:02:45]}  h6 {[%clk 0:02:22]} 12. Bxf6 {[%clk 0:02:45]}  Bxf6 {[%clk 0:02:23]} 13. f3 {[%clk 0:02:46]}  exf3 {[%clk 0:02:16]} 14. Qxf3 {[%clk 0:02:46]}  Bg5 {[%clk 0:01:53]} 15. Ncxd5 {[%clk 0:02:40]}  Bxd5 {[%clk 0:01:48]} 16. Nxd5 {[%clk 0:02:30]}  Qd7 {[%clk 0:01:37]} 17. h4 {[%clk 0:02:26]}  Bd8 {[%clk 0:01:35]} 18. Kh2 {[%clk 0:02:21]}  Ne7 {[%clk 0:01:33]} 19. Nxe7+ {[%clk 0:02:13]}  Qxe7 {[%clk 0:01:33]} 20. Qxb7 {[%clk 0:02:09]}  Bc7 {[%clk 0:01:31]} 21. Qe4 {[%clk 0:02:05]}  Qd6 {[%clk 0:00:51]} 22. Qg4 {[%clk 0:01:48]}  Rae8 {[%clk 0:00:45]} 23. Rf3 {[%clk 0:01:46]}  f5 {[%clk 0:00:43]} 24. Qh3 {[%clk 0:01:39]}  Re4 {[%clk 0:00:39]} 25. Raf1 {[%clk 0:01:26]}  Qe7 {[%clk 0:00:37]} 26. Rxf5 {[%clk 0:01:15]}  Rxh4 {[%clk 0:00:29]} 27. Rxf8+ {[%clk 0:01:12]}  Kh7 {[%clk 0:00:29]} 28. R1f3 {[%clk 0:01:02]}  Rxh3+ {[%clk 0:00:17]} 29. Bxh3 {[%clk 0:01:03]}  Qb4 {[%clk 0:00:15]} 30. Rf2 {[%clk 0:00:52]}  Qd6 {[%clk 0:00:12]} 31. R8f3 {[%clk 0:00:49]}  h5 {[%clk 0:00:12]} 32. Kg2 {[%clk 0:00:48]}  g5 {[%clk 0:00:09]} 33. Bf5+ {[%clk 0:00:48]}  Kg7 {[%clk 0:00:08]} 34. Bd3 {[%clk 0:00:44]}  h4 {[%clk 0:00:08]} 35. Rf7+ {[%clk 0:00:44]}  Kg8 {[%clk 0:00:08]} 36. Rf8+ {[%clk 0:00:42]}  Qxf8 {[%clk 0:00:07]} 37. Rxf8+ {[%clk 0:00:41]}  Kxf8 {[%clk 0:00:07]} 38. gxh4 {[%clk 0:00:42]}  gxh4 {[%clk 0:00:07]} 39. e4 {[%clk 0:00:42]}  Bg3 {[%clk 0:00:07]} 40. Kf3 {[%clk 0:00:35]}  Ke7 {[%clk 0:00:08]} 41. e5 {[%clk 0:00:34]}  Ke6 {[%clk 0:00:07]} 42. Ke4 {[%clk 0:00:30]}  h3 {[%clk 0:00:07]} 43. Bf1 {[%clk 0:00:29]}  h2 {[%clk 0:00:07]} 44. Bh3+ {[%clk 0:00:29]}  Ke7 {[%clk 0:00:06]} 45. Bg2 {[%clk 0:00:30]}  Bf2 {[%clk 0:00:05]} 46. d5 {[%clk 0:00:29]}  Bg3 {[%clk 0:00:05]} 47. b4 {[%clk 0:00:27]}  Be1 {[%clk 0:00:05]} 48. b5 {[%clk 0:00:25]}  Ba5 {[%clk 0:00:05]} 49. Kf5 {[%clk 0:00:21]}  Bc3 {[%clk 0:00:03]} 50. d6+ {[%clk 0:00:21]}  Kd7 {[%clk 0:00:03]} 51. Bc6+ {[%clk 0:00:21]}  Kd8 {[%clk 0:00:03]} 52. e6 {[%clk 0:00:21]} 1-0


[Site "https://www.chess.com"]

[Event "Titled Tuesday Blitz October 11 Late 2022"]
[White "Kravtsiv, Martyn"]
[Black "Ambartsumova, Karina"]
[WhiteFideId "14113147"]
[BlackFideId "4166299"]
[WhiteElo "2694"]
[BlackElo "2299"]
[Result "1-0"]
[Round "05"]
[TimeControl "180+1"]
[Date "2022.10.12"]
[WhiteClock "0:00:13"]
[BlackClock "0:00:02"]

1. e4 {[%clk 0:03:00]}  e5 {[%clk 0:02:59]} 2. Nf3 {[%clk 0:03:00]}  Nc6 {[%clk 0:02:59]} 3. Nc3 {[%clk 0:03:00]}  Nf6 {[%clk 0:02:59]} 4. a4 {[%clk 0:03:00]}  Be7 {[%clk 0:02:56]} 5. d4 {[%clk 0:02:58]}  exd4 {[%clk 0:02:55]} 6. Nxd4 {[%clk 0:02:58]}  Bb4 {[%clk 0:02:53]} 7. Nxc6 {[%clk 0:02:55]}  bxc6 {[%clk 0:02:54]} 8. Bd3 {[%clk 0:02:55]}  O-O {[%clk 0:02:53]} 9. O-O {[%clk 0:02:53]}  d5 {[%clk 0:02:53]} 10. exd5 {[%clk 0:02:37]}  cxd5 {[%clk 0:02:54]} 11. Qf3 {[%clk 0:02:33]}  c6 {[%clk 0:02:54]} 12. h3 {[%clk 0:02:32]}  Rb8 {[%clk 0:02:53]} 13. Ne2 {[%clk 0:02:28]}  Bd6 {[%clk 0:02:49]} 14. Nd4 {[%clk 0:02:24]}  Qc7 {[%clk 0:02:33]} 15. Re1 {[%clk 0:02:18]}  Bd7 {[%clk 0:02:21]} 16. b3 {[%clk 0:02:11]}  Rfe8 {[%clk 0:01:57]} 17. Bb2 {[%clk 0:02:08]}  Be5 {[%clk 0:01:57]} 18. Rab1 {[%clk 0:02:00]}  c5 {[%clk 0:01:51]} 19. Nb5 {[%clk 0:01:59]}  Bxb5 {[%clk 0:01:33]} 20. Bxb5 {[%clk 0:02:00]}  Re6 {[%clk 0:01:16]} 21. Bxe5 {[%clk 0:01:54]}  Rxe5 {[%clk 0:01:17]} 22. Re2 {[%clk 0:01:19]}  Rb6 {[%clk 0:00:35]} 23. Qf4 {[%clk 0:01:00]}  Rbe6 {[%clk 0:00:35]} 24. Rbe1 {[%clk 0:01:00]}  Rxe2 {[%clk 0:00:21]} 25. Qxc7 {[%clk 0:00:59]}  Rxe1+ {[%clk 0:00:22]} 26. Kh2 {[%clk 0:00:59]}  h5 {[%clk 0:00:15]} 27. Qxa7 {[%clk 0:00:55]}  Ne4 {[%clk 0:00:07]} 28. Bd3 {[%clk 0:00:52]}  Nxf2 {[%clk 0:00:04]} 29. Qxc5 {[%clk 0:00:43]}  Nxd3 {[%clk 0:00:04]} 30. cxd3 {[%clk 0:00:42]}  R6e5 {[%clk 0:00:04]} 31. a5 {[%clk 0:00:39]}  Ra1 {[%clk 0:00:04]} 32. a6 {[%clk 0:00:38]}  Ree1 {[%clk 0:00:03]} 33. h4 {[%clk 0:00:20]}  Rh1+ {[%clk 0:00:02]} 34. Kg3 {[%clk 0:00:20]}  Rhd1 {[%clk 0:00:02]} 35. a7 {[%clk 0:00:18]}  Rxd3+ {[%clk 0:00:03]} 36. Kh2 {[%clk 0:00:18]}  Rxb3 {[%clk 0:00:03]} 37. Qc8+ {[%clk 0:00:18]}  Kh7 {[%clk 0:00:03]} 38. a8=Q {[%clk 0:00:18]}  Rxa8 {[%clk 0:00:03]} 39. Qxa8 {[%clk 0:00:18]}  Rb4 {[%clk 0:00:03]} 40. Kh3 {[%clk 0:00:16]}  Rg4 {[%clk 0:00:03]} 41. Qxd5 {[%clk 0:00:15]}  Kg6 {[%clk 0:00:02]} 42. Qd6+ {[%clk 0:00:14]}  Kh7 {[%clk 0:00:02]} 43. Qe7 {[%clk 0:00:13]}  Kg6 {[%clk 0:00:02]} 44. Qd8 {[%clk 0:00:13]} 1-0


[Site "https://www.chess.com"]

[Event "Titled Tuesday Blitz October 11 Late 2022"]
[White "Krzywda, Andrzej"]
[Black "Onslow, Alfie"]
[WhiteFideId "1114565"]
[BlackFideId "436976"]
[WhiteElo "2149"]
[BlackElo "2015"]
[Result "0-1"]
[Round "05"]
[TimeControl "180+1"]
[Date "2022.10.12"]
[WhiteClock "0:00:03"]
[BlackClock "0:00:13"]

1. e4 {[%clk 0:02:59]}  g6 {[%clk 0:02:58]} 2. d4 {[%clk 0:02:59]}  Bg7 {[%clk 0:02:57]} 3. Nf3 {[%clk 0:02:58]}  c6 {[%clk 0:02:54]} 4. Nc3 {[%clk 0:02:53]}  d5 {[%clk 0:02:52]} 5. h3 {[%clk 0:02:52]}  dxe4 {[%clk 0:02:52]} 6. Nxe4 {[%clk 0:02:53]}  Nf6 {[%clk 0:02:52]} 7. Bd3 {[%clk 0:02:50]}  O-O {[%clk 0:02:51]} 8. c3 {[%clk 0:02:48]}  Nxe4 {[%clk 0:02:51]} 9. Bxe4 {[%clk 0:02:48]}  Nd7 {[%clk 0:02:52]} 10. O-O {[%clk 0:02:48]}  e5 {[%clk 0:02:49]} 11. dxe5 {[%clk 0:02:38]}  Nxe5 {[%clk 0:02:48]} 12. Nxe5 {[%clk 0:02:29]}  Bxe5 {[%clk 0:02:46]} 13. Bh6 {[%clk 0:02:29]}  Bg7 {[%clk 0:02:42]} 14. Bxg7 {[%clk 0:02:16]}  Kxg7 {[%clk 0:02:41]} 15. Re1 {[%clk 0:02:00]}  Qg5 {[%clk 0:02:35]} 16. Qd4+ {[%clk 0:01:58]}  Kg8 {[%clk 0:02:32]} 17. Qe3 {[%clk 0:01:41]}  Qxe3 {[%clk 0:02:28]} 18. Rxe3 {[%clk 0:01:42]}  Be6 {[%clk 0:02:29]} 19. b3 {[%clk 0:01:35]}  Rfd8 {[%clk 0:02:28]} 20. Re2 {[%clk 0:01:29]}  Rd6 {[%clk 0:02:23]} 21. Bf3 {[%clk 0:01:26]}  Rad8 {[%clk 0:02:09]} 22. Rae1 {[%clk 0:01:26]}  a5 {[%clk 0:01:55]} 23. c4 {[%clk 0:01:23]}  Rd2 {[%clk 0:01:51]} 24. h4 {[%clk 0:01:22]}  Kg7 {[%clk 0:01:49]} 25. g3 {[%clk 0:01:17]}  Kf6 {[%clk 0:01:49]} 26. Kg2 {[%clk 0:01:16]}  a4 {[%clk 0:01:47]} 27. g4 {[%clk 0:01:04]}  h6 {[%clk 0:01:27]} 28. Kg3 {[%clk 0:01:02]}  R8d3 {[%clk 0:01:21]} 29. Rxd2 {[%clk 0:00:57]}  Rxd2 {[%clk 0:01:21]} 30. Re2 {[%clk 0:00:57]}  Rd3 {[%clk 0:00:40]} 31. Re3 {[%clk 0:00:38]}  Rd2 {[%clk 0:00:37]} 32. Re2 {[%clk 0:00:38]}  Rd3 {[%clk 0:00:37]} 33. Re3 {[%clk 0:00:38]}  Rxe3 {[%clk 0:00:34]} 34. fxe3 {[%clk 0:00:38]}  Ke5 {[%clk 0:00:34]} 35. Kf2 {[%clk 0:00:29]}  g5 {[%clk 0:00:32]} 36. hxg5 {[%clk 0:00:27]}  hxg5 {[%clk 0:00:33]} 37. Ke2 {[%clk 0:00:27]}  f5 {[%clk 0:00:20]} 38. gxf5 {[%clk 0:00:26]}  Bxf5 {[%clk 0:00:21]} 39. bxa4 {[%clk 0:00:15]}  g4 {[%clk 0:00:21]} 40. Bg2 {[%clk 0:00:15]}  Be4 {[%clk 0:00:20]} 41. Kf2 {[%clk 0:00:04]}  Bxg2 {[%clk 0:00:18]} 42. Kxg2 {[%clk 0:00:05]}  Ke4 {[%clk 0:00:19]} 43. Kg3 {[%clk 0:00:05]}  Kxe3 {[%clk 0:00:19]} 44. Kxg4 {[%clk 0:00:05]}  Kd4 {[%clk 0:00:20]} 45. Kf4 {[%clk 0:00:05]}  Kxc4 {[%clk 0:00:20]} 46. Ke4 {[%clk 0:00:06]}  c5 {[%clk 0:00:19]} 47. Ke5 {[%clk 0:00:05]}  Kd3 {[%clk 0:00:19]} 48. Kd6 {[%clk 0:00:05]}  c4 {[%clk 0:00:20]} 49. Kc7 {[%clk 0:00:05]}  c3 {[%clk 0:00:20]} 50. Kxb7 {[%clk 0:00:06]}  c2 {[%clk 0:00:21]} 51. a5 {[%clk 0:00:07]}  c1=Q {[%clk 0:00:22]} 52. a6 {[%clk 0:00:07]}  Qb2+ {[%clk 0:00:21]} 53. Ka8 {[%clk 0:00:07]}  Kc4 {[%clk 0:00:14]} 54. a4 {[%clk 0:00:03]}  Kc5 {[%clk 0:00:13]} 0-1


[Site "https://www.chess.com"]

[Event "Titled Tuesday Blitz October 11 Late 2022"]
[White "Kukula, Pawel"]
[Black "Sai Krishna G V"]
[WhiteFideId "1115081"]
[BlackFideId "5028280"]
[WhiteElo "2062"]
[BlackElo "2359"]
[Result "0-1"]
[Round "05"]
[TimeControl "180+1"]
[Date "2022.10.12"]
[WhiteClock "0:00:02"]
[BlackClock "0:00:41"]

1. c4 {[%clk 0:02:55]}  g6 {[%clk 0:03:00]} 2. Nf3 {[%clk 0:02:54]}  Bg7 {[%clk 0:03:01]} 3. Nc3 {[%clk 0:02:54]}  c5 {[%clk 0:03:00]} 4. e3 {[%clk 0:02:51]}  Nc6 {[%clk 0:02:58]} 5. d4 {[%clk 0:02:51]}  d6 {[%clk 0:02:56]} 6. Be2 {[%clk 0:02:50]}  Nf6 {[%clk 0:02:56]} 7. O-O {[%clk 0:02:50]}  O-O {[%clk 0:02:56]} 8. b3 {[%clk 0:02:51]}  Nd7 {[%clk 0:02:55]} 9. Bb2 {[%clk 0:02:50]}  a6 {[%clk 0:02:55]} 10. Rc1 {[%clk 0:02:48]}  Rb8 {[%clk 0:02:53]} 11. Qc2 {[%clk 0:02:46]}  Qa5 {[%clk 0:02:52]} 12. Rfd1 {[%clk 0:02:46]}  b5 {[%clk 0:02:49]} 13. dxc5 {[%clk 0:02:40]}  Nxc5 {[%clk 0:02:46]} 14. cxb5 {[%clk 0:02:34]}  axb5 {[%clk 0:02:47]} 15. Nd4 {[%clk 0:02:34]}  Nb4 {[%clk 0:02:24]} 16. Qb1 {[%clk 0:02:33]}  e5 {[%clk 0:02:24]} 17. Nc2 {[%clk 0:02:23]}  Bf5 {[%clk 0:02:20]} 18. e4 {[%clk 0:01:59]}  Nxe4 {[%clk 0:02:18]} 19. Nxe4 {[%clk 0:01:53]}  Bxe4 {[%clk 0:02:18]} 20. Bc3 {[%clk 0:01:51]}  Qxa2 {[%clk 0:02:12]} 21. Nxb4 {[%clk 0:01:40]}  Qxe2 {[%clk 0:02:07]} 22. Qb2 {[%clk 0:01:30]}  Qg4 {[%clk 0:02:05]} 23. f3 {[%clk 0:01:29]}  Bxf3 {[%clk 0:02:05]} 24. Rxd6 {[%clk 0:01:26]}  Rfc8 {[%clk 0:02:04]} 25. Rd3 {[%clk 0:00:59]}  e4 {[%clk 0:02:01]} 26. Rd2 {[%clk 0:00:56]}  e3 {[%clk 0:01:52]} 27. h3 {[%clk 0:00:35]}  exd2 {[%clk 0:01:50]} 28. hxg4 {[%clk 0:00:33]}  dxc1=Q+ {[%clk 0:01:50]} 29. Qxc1 {[%clk 0:00:34]}  Rxc3 {[%clk 0:01:49]} 30. Qf4 {[%clk 0:00:31]}  Re8 {[%clk 0:01:39]} 31. gxf3 {[%clk 0:00:31]}  Rxb3 {[%clk 0:01:34]} 32. Nd5 {[%clk 0:00:30]}  Rb2 {[%clk 0:01:33]} 33. Kf1 {[%clk 0:00:23]}  Ra8 {[%clk 0:01:32]} 34. Qc1 {[%clk 0:00:16]}  Rh2 {[%clk 0:01:32]} 35. Kg1 {[%clk 0:00:13]}  Ra1 {[%clk 0:01:11]} 36. Qxa1 {[%clk 0:00:12]}  Bxa1 {[%clk 0:01:12]} 37. Kxh2 {[%clk 0:00:12]}  Kg7 {[%clk 0:01:05]} 38. Kg2 {[%clk 0:00:11]}  Kh6 {[%clk 0:01:05]} 39. Kg3 {[%clk 0:00:11]}  g5 {[%clk 0:01:03]} 40. f4 {[%clk 0:00:10]}  f6 {[%clk 0:00:52]} 41. f5 {[%clk 0:00:05]}  Kg7 {[%clk 0:00:50]} 42. Kf3 {[%clk 0:00:06]}  Be5 {[%clk 0:00:44]} 43. Ke4 {[%clk 0:00:05]}  h5 {[%clk 0:00:43]} 44. Kf3 {[%clk 0:00:03]}  h4 {[%clk 0:00:43]} 45. Kg2 {[%clk 0:00:03]}  Kf7 {[%clk 0:00:42]} 46. Kh3 {[%clk 0:00:02]}  Ke8 {[%clk 0:00:42]} 47. Kg2 {[%clk 0:00:02]}  Kd7 {[%clk 0:00:43]} 48. Kf3 {[%clk 0:00:02]}  Kc6 {[%clk 0:00:42]} 49. Ne3 {[%clk 0:00:02]}  Kc5 {[%clk 0:00:41]} 0-1


[Site "https://www.chess.com"]

[Event "Titled Tuesday Blitz October 11 Late 2022"]
[White "Lazavik, Denis"]
[Black "Donchenko, Alexander"]
[WhiteFideId "13515110"]
[BlackFideId "24603295"]
[WhiteElo "2437"]
[BlackElo "2572"]
[Result "1-0"]
[Round "05"]
[TimeControl "180+1"]
[Date "2022.10.11"]
[WhiteClock "0:00:05"]
[BlackClock "0:00:01"]

1. d4 {[%clk 0:03:00]}  d5 {[%clk 0:03:00]} 2. c4 {[%clk 0:03:01]}  dxc4 {[%clk 0:03:01]} 3. Nf3 {[%clk 0:03:01]}  a6 {[%clk 0:03:01]} 4. e3 {[%clk 0:03:01]}  e6 {[%clk 0:03:01]} 5. Bxc4 {[%clk 0:03:01]}  Nf6 {[%clk 0:03:02]} 6. O-O {[%clk 0:03:00]}  c5 {[%clk 0:03:02]} 7. b3 {[%clk 0:02:58]}  Nbd7 {[%clk 0:02:59]} 8. Bb2 {[%clk 0:02:57]}  Be7 {[%clk 0:02:59]} 9. Nbd2 {[%clk 0:02:53]}  O-O {[%clk 0:02:59]} 10. dxc5 {[%clk 0:02:42]}  Nxc5 {[%clk 0:02:58]} 11. b4 {[%clk 0:02:33]}  Nd3 {[%clk 0:02:55]} 12. Bxd3 {[%clk 0:02:20]}  Qxd3 {[%clk 0:02:56]} 13. a3 {[%clk 0:02:19]}  b6 {[%clk 0:02:48]} 14. Ne5 {[%clk 0:02:18]}  Qd5 {[%clk 0:02:48]} 15. Qe2 {[%clk 0:02:13]}  Bb7 {[%clk 0:02:47]} 16. f3 {[%clk 0:02:13]}  Rfc8 {[%clk 0:02:10]} 17. e4 {[%clk 0:02:02]}  Qd8 {[%clk 0:02:10]} 18. Ndc4 {[%clk 0:02:00]}  a5 {[%clk 0:01:56]} 19. Rfd1 {[%clk 0:01:57]}  Qc7 {[%clk 0:01:57]} 20. b5 {[%clk 0:01:40]}  Rd8 {[%clk 0:01:51]} 21. a4 {[%clk 0:01:35]}  Rxd1+ {[%clk 0:01:45]} 22. Rxd1 {[%clk 0:01:33]}  Rd8 {[%clk 0:01:45]} 23. Rxd8+ {[%clk 0:01:19]}  Qxd8 {[%clk 0:01:46]} 24. Qd3 {[%clk 0:01:19]}  Bc5+ {[%clk 0:01:25]} 25. Kf1 {[%clk 0:01:13]}  Qc7 {[%clk 0:01:25]} 26. Bd4 {[%clk 0:01:10]}  h6 {[%clk 0:01:16]} 27. Bxc5 {[%clk 0:01:06]}  Qxc5 {[%clk 0:01:15]} 28. Qd6 {[%clk 0:01:04]}  Qc8 {[%clk 0:00:41]} 29. Qxb6 {[%clk 0:00:53]}  Kh7 {[%clk 0:00:38]} 30. Qd4 {[%clk 0:00:51]}  Nh5 {[%clk 0:00:27]} 31. Nxf7 {[%clk 0:00:45]}  Ba8 {[%clk 0:00:25]} 32. Nfd6 {[%clk 0:00:44]}  Qf8 {[%clk 0:00:24]} 33. b6 {[%clk 0:00:41]}  Qf4 {[%clk 0:00:24]} 34. Kg1 {[%clk 0:00:27]}  Qc1+ {[%clk 0:00:23]} 35. Kf2 {[%clk 0:00:27]}  Qf4 {[%clk 0:00:23]} 36. g3 {[%clk 0:00:23]}  Qc1 {[%clk 0:00:23]} 37. Qd2 {[%clk 0:00:16]}  Qb1 {[%clk 0:00:21]} 38. Nb5 {[%clk 0:00:11]}  Nf6 {[%clk 0:00:18]} 39. Ncd6 {[%clk 0:00:09]}  Bc6 {[%clk 0:00:15]} 40. b7 {[%clk 0:00:09]}  Bxb7 {[%clk 0:00:14]} 41. Nxb7 {[%clk 0:00:10]}  Qa1 {[%clk 0:00:14]} 42. Nc5 {[%clk 0:00:09]}  e5 {[%clk 0:00:12]} 43. Nc3 {[%clk 0:00:08]}  Qa3 {[%clk 0:00:12]} 44. Nd3 {[%clk 0:00:08]}  Qd6 {[%clk 0:00:12]} 45. Kg2 {[%clk 0:00:08]}  Qd4 {[%clk 0:00:11]} 46. Ne2 {[%clk 0:00:08]}  Qxa4 {[%clk 0:00:12]} 47. Nxe5 {[%clk 0:00:08]}  Qb5 {[%clk 0:00:11]} 48. Nd3 {[%clk 0:00:07]}  a4 {[%clk 0:00:12]} 49. Nc3 {[%clk 0:00:07]}  Qc4 {[%clk 0:00:12]} 50. e5 {[%clk 0:00:07]}  Nd7 {[%clk 0:00:09]} 51. Nb2 {[%clk 0:00:07]}  Qb3 {[%clk 0:00:09]} 52. Nbxa4 {[%clk 0:00:06]}  Nxe5 {[%clk 0:00:09]} 53. Nc5 {[%clk 0:00:06]}  Qc4 {[%clk 0:00:07]} 54. N5e4 {[%clk 0:00:07]}  Nd3 {[%clk 0:00:05]} 55. Qe2 {[%clk 0:00:06]}  Qa6 {[%clk 0:00:03]} 56. h4 {[%clk 0:00:05]}  Qc4 {[%clk 0:00:02]} 57. Kh2 {[%clk 0:00:05]}  Qd4 {[%clk 0:00:02]} 58. Nd1 {[%clk 0:00:05]}  Ne5 {[%clk 0:00:02]} 59. Ndf2 {[%clk 0:00:05]}  Qc3 {[%clk 0:00:02]} 60. Kg2 {[%clk 0:00:05]}  Qd4 {[%clk 0:00:02]} 61. Qd2 {[%clk 0:00:05]}  Qc4 {[%clk 0:00:01]} 62. Qf4 {[%clk 0:00:05]}  Ng6 {[%clk 0:00:01]} 63. Qf5 {[%clk 0:00:05]}  Qe2 {[%clk 0:00:01]} 64. h5 {[%clk 0:00:05]}  Kh8 {[%clk 0:00:01]} 65. hxg6 {[%clk 0:00:05]} 1-0


[Site "https://www.chess.com"]

[Event "Titled Tuesday Blitz October 11 Late 2022"]
[White "Le Goff, Ronan"]
[Black "Kaganskiy, Gleb"]
[WhiteFideId "612073"]
[BlackFideId "4132025"]
[WhiteElo "2276"]
[BlackElo "2165"]
[Result "1-0"]
[Round "05"]
[TimeControl "180+1"]
[Date "2022.10.12"]
[WhiteClock "0:02:12"]
[BlackClock "0:00:36"]

1. e4 {[%clk 0:03:00]}  e6 {[%clk 0:02:55]} 2. d4 {[%clk 0:02:57]}  d5 {[%clk 0:02:53]} 3. e5 {[%clk 0:02:57]}  c5 {[%clk 0:02:51]} 4. c3 {[%clk 0:02:57]}  Qb6 {[%clk 0:02:51]} 5. Nf3 {[%clk 0:02:55]}  Nc6 {[%clk 0:02:52]} 6. a3 {[%clk 0:02:54]}  c4 {[%clk 0:02:51]} 7. Be2 {[%clk 0:02:53]}  Na5 {[%clk 0:02:47]} 8. Nbd2 {[%clk 0:02:52]}  Bd7 {[%clk 0:02:45]} 9. O-O {[%clk 0:02:52]}  Ne7 {[%clk 0:02:45]} 10. Nh4 {[%clk 0:02:51]}  g5 {[%clk 0:02:31]} 11. Nhf3 {[%clk 0:02:50]}  h6 {[%clk 0:02:30]} 12. Ne1 {[%clk 0:02:49]}  Nc8 {[%clk 0:02:29]} 13. f4 {[%clk 0:02:49]}  Qc7 {[%clk 0:02:13]} 14. Bh5 {[%clk 0:02:46]}  Rh7 {[%clk 0:02:10]} 15. Nc2 {[%clk 0:02:41]}  Nb6 {[%clk 0:02:05]} 16. Ne3 {[%clk 0:02:39]}  O-O-O {[%clk 0:01:52]} 17. f5 {[%clk 0:02:38]}  Nb3 {[%clk 0:01:40]} 18. Nxb3 {[%clk 0:02:37]}  Ba4 {[%clk 0:01:40]} 19. fxe6 {[%clk 0:02:34]}  fxe6 {[%clk 0:01:35]} 20. Qg4 {[%clk 0:02:29]}  Bxb3 {[%clk 0:01:34]} 21. Qxe6+ {[%clk 0:02:26]}  Kb8 {[%clk 0:01:28]} 22. Bd2 {[%clk 0:02:23]}  Re7 {[%clk 0:01:04]} 23. Qg4 {[%clk 0:02:19]}  Bg7 {[%clk 0:00:42]} 24. Nf5 {[%clk 0:02:13]}  Red7 {[%clk 0:00:36]} 25. e6 {[%clk 0:02:12]} 1-0


[Site "https://www.chess.com"]

[Event "Titled Tuesday Blitz October 11 Late 2022"]
[White "Lopez Perdomo, Juan David"]
[Black "Romero Ruscalleda, Josep"]
[WhiteFideId "4405137"]
[BlackFideId "2231859"]
[WhiteElo "1965"]
[BlackElo "2360"]
[Result "0-1"]
[Round "05"]
[TimeControl "180+1"]
[Date "2022.10.12"]
[WhiteClock "0:00:57"]
[BlackClock "0:01:35"]

1. e4 {[%clk 0:02:55]}  g6 {[%clk 0:03:00]} 2. d4 {[%clk 0:02:55]}  Bg7 {[%clk 0:03:00]} 3. Nf3 {[%clk 0:02:54]}  d6 {[%clk 0:03:01]} 4. Bc4 {[%clk 0:02:54]}  Nf6 {[%clk 0:03:00]} 5. Nc3 {[%clk 0:02:51]}  O-O {[%clk 0:02:59]} 6. h3 {[%clk 0:02:50]}  Nxe4 {[%clk 0:02:59]} 7. Nxe4 {[%clk 0:02:45]}  d5 {[%clk 0:02:59]} 8. Bd3 {[%clk 0:02:46]}  dxe4 {[%clk 0:02:59]} 9. Bxe4 {[%clk 0:02:46]}  Nd7 {[%clk 0:02:51]} 10. O-O {[%clk 0:02:44]}  Nf6 {[%clk 0:02:51]} 11. Bd3 {[%clk 0:02:39]}  Qd6 {[%clk 0:02:49]} 12. c3 {[%clk 0:02:39]}  c5 {[%clk 0:02:49]} 13. dxc5 {[%clk 0:02:36]}  Qxc5 {[%clk 0:02:49]} 14. Be3 {[%clk 0:02:37]}  Qc7 {[%clk 0:02:49]} 15. Qa4 {[%clk 0:02:30]}  Bd7 {[%clk 0:02:41]} 16. Qh4 {[%clk 0:02:30]}  Bc6 {[%clk 0:02:38]} 17. Nd4 {[%clk 0:02:28]}  Bd5 {[%clk 0:02:24]} 18. Rfe1 {[%clk 0:02:27]}  a6 {[%clk 0:02:16]} 19. Bf4 {[%clk 0:02:26]}  Qc5 {[%clk 0:02:06]} 20. b4 {[%clk 0:02:04]}  Qxc3 {[%clk 0:02:02]} 21. Rad1 {[%clk 0:01:38]}  Qxd4 {[%clk 0:01:57]} 22. Bxg6 {[%clk 0:01:39]}  Qxb4 {[%clk 0:01:53]} 23. Rxd5 {[%clk 0:01:37]}  fxg6 {[%clk 0:01:47]} 24. Rde5 {[%clk 0:01:33]}  Nh5 {[%clk 0:01:37]} 25. Rxh5 {[%clk 0:00:57]}  Qxe1+ {[%clk 0:01:35]} 0-1


[Site "https://www.chess.com"]

[Event "Titled Tuesday Blitz October 11 Late 2022"]
[White "Makaraci, Tunahan"]
[Black "Aguilar, Juan"]
[WhiteFideId "6356559"]
[BlackFideId "3800091"]
[WhiteElo "2175"]
[BlackElo "2382"]
[Result "0-1"]
[Round "05"]
[TimeControl "180+1"]
[Date "2022.10.12"]
[WhiteClock "0:00:12"]
[BlackClock "0:00:06"]

1. e4 {[%clk 0:03:00]}  c5 {[%clk 0:02:58]} 2. Nf3 {[%clk 0:03:00]}  d6 {[%clk 0:02:58]} 3. d4 {[%clk 0:03:01]}  cxd4 {[%clk 0:02:58]} 4. Nxd4 {[%clk 0:03:02]}  Nf6 {[%clk 0:02:59]} 5. Nc3 {[%clk 0:03:02]}  a6 {[%clk 0:02:59]} 6. Bc4 {[%clk 0:03:03]}  e6 {[%clk 0:03:00]} 7. Bb3 {[%clk 0:03:03]}  b5 {[%clk 0:02:58]} 8. Bg5 {[%clk 0:03:03]}  Be7 {[%clk 0:02:58]} 9. Qf3 {[%clk 0:03:03]}  Qb6 {[%clk 0:02:55]} 10. O-O-O {[%clk 0:03:03]}  Qb7 {[%clk 0:02:41]} 11. Nf5 {[%clk 0:02:56]}  exf5 {[%clk 0:02:30]} 12. Bxf6 {[%clk 0:02:55]}  Bxf6 {[%clk 0:02:30]} 13. Bd5 {[%clk 0:02:54]}  Qa7 {[%clk 0:02:20]} 14. exf5 {[%clk 0:02:35]}  O-O {[%clk 0:02:19]} 15. Bxa8 {[%clk 0:02:34]}  Nd7 {[%clk 0:02:09]} 16. Bd5 {[%clk 0:02:23]}  Nc5 {[%clk 0:01:40]} 17. h4 {[%clk 0:02:12]}  b4 {[%clk 0:01:29]} 18. Ne4 {[%clk 0:02:12]}  Nxe4 {[%clk 0:01:15]} 19. Bxe4 {[%clk 0:02:11]}  Qc5 {[%clk 0:01:12]} 20. Rd5 {[%clk 0:02:06]}  Qc4 {[%clk 0:01:12]} 21. Kb1 {[%clk 0:02:02]}  Bb7 {[%clk 0:01:00]} 22. Rhd1 {[%clk 0:01:15]}  Re8 {[%clk 0:00:43]} 23. R5d4 {[%clk 0:00:42]}  Bxd4 {[%clk 0:00:30]} 24. Bxb7 {[%clk 0:00:42]}  Re2 {[%clk 0:00:15]} 25. Be4 {[%clk 0:00:33]}  Rxf2 {[%clk 0:00:09]} 26. Qg3 {[%clk 0:00:31]}  h6 {[%clk 0:00:03]} 27. Qxd6 {[%clk 0:00:26]}  Bf6 {[%clk 0:00:02]} 28. Qb6 {[%clk 0:00:17]}  Qxe4 {[%clk 0:00:02]} 29. Qxf2 {[%clk 0:00:17]}  Qe5 {[%clk 0:00:02]} 30. c4 {[%clk 0:00:08]}  bxc3 {[%clk 0:00:02]} 31. b3 {[%clk 0:00:08]}  c2+ {[%clk 0:00:02]} 32. Kxc2 {[%clk 0:00:08]}  Qb2+ {[%clk 0:00:02]} 33. Kd3 {[%clk 0:00:07]}  Qxf2 {[%clk 0:00:03]} 34. Kc4 {[%clk 0:00:07]}  Qxf5 {[%clk 0:00:03]} 35. Rd3 {[%clk 0:00:08]}  Kh7 {[%clk 0:00:03]} 36. Rd5 {[%clk 0:00:09]}  Qe6 {[%clk 0:00:03]} 37. Kc5 {[%clk 0:00:09]}  Be7+ {[%clk 0:00:03]} 38. Kd4 {[%clk 0:00:09]}  Qe1 {[%clk 0:00:03]} 39. Kc4 {[%clk 0:00:10]}  Qg1 {[%clk 0:00:03]} 40. Rd3 {[%clk 0:00:11]}  Qxg2 {[%clk 0:00:04]} 41. a4 {[%clk 0:00:11]}  Qc6+ {[%clk 0:00:04]} 42. Kd4 {[%clk 0:00:11]}  Bf6+ {[%clk 0:00:05]} 43. Ke3 {[%clk 0:00:12]}  Qe6+ {[%clk 0:00:05]} 44. Kd2 {[%clk 0:00:13]}  Qe5 {[%clk 0:00:05]} 45. Kc2 {[%clk 0:00:13]}  Qh2+ {[%clk 0:00:05]} 46. Kd1 {[%clk 0:00:12]}  Qxh4 {[%clk 0:00:06]} 0-1


[Site "https://www.chess.com"]